[Event "*** Titled Tuesday Blitz"]
[Site "Chess.com"]
[Date "2020.12.01"]
[Round "11"]
[White "Sergienko_Sergey"]
[Black "cstevens1"]
[Result "0-1"]
[WhiteElo "2370"]
[BlackElo "2637"]
[TimeControl "180+1"]
[EndTime "12:07:23 PST"]
[Termination "cstevens1 won on time"]

1. e4 {[%clk 0:02:59.2]} 1... c5 {[%clk 0:02:58.9]} 2. Nf3 {[%clk 0:02:58.4]}
2... e6 {[%clk 0:02:58.4]} 3. d3 {[%clk 0:02:57.8]} 3... Nc6 {[%clk 0:02:56.6]}
4. g3 {[%clk 0:02:57.2]} 4... Nge7 {[%clk 0:02:56.4]} 5. Bg2 {[%clk 0:02:56.6]}
5... d5 {[%clk 0:02:56.9]} 6. Nbd2 {[%clk 0:02:53.5]} 6... g6 {[%clk 0:02:57.4]}
7. O-O {[%clk 0:02:52.6]} 7... Bg7 {[%clk 0:02:57.9]} 8. Re1 {[%clk 0:02:49.9]}
8... h6 {[%clk 0:02:57.5]} 9. c3 {[%clk 0:02:44.8]} 9... b6 {[%clk 0:02:57.7]}
10. Qe2 {[%clk 0:02:30.8]} 10... Ba6 {[%clk 0:02:56.2]} 11. e5 {[%clk
0:02:21.9]} 11... g5 {[%clk 0:02:55.7]} 12. h3 {[%clk 0:02:18.9]} 12... Ng6
{[%clk 0:02:55.2]} 13. c4 {[%clk 0:02:00.5]} 13... Ncxe5 {[%clk 0:02:27.6]} 14.
Nxe5 {[%clk 0:01:58.9]} 14... Nxe5 {[%clk 0:02:27.7]} 15. f4 {[%clk 0:01:55.8]}
15... gxf4 {[%clk 0:02:23.9]} 16. gxf4 {[%clk 0:01:54.8]} 16... Nc6 {[%clk
0:02:24.5]} 17. cxd5 {[%clk 0:01:44.4]} 17... Nd4 {[%clk 0:02:21.5]} 18. Qh5
{[%clk 0:01:40.2]} 18... O-O {[%clk 0:02:07]} 19. dxe6 {[%clk 0:01:37.9]} 19...
fxe6 {[%clk 0:02:07.2]} 20. Nb3 {[%clk 0:01:10.8]} 20... Nc2 {[%clk 0:01:11.6]}
21. Rxe6 {[%clk 0:01:08.5]} 21... Nxa1 {[%clk 0:01:05.8]} 22. Bd5 {[%clk
0:00:53.4]} 22... Qxd5 {[%clk 0:00:31.9]} 23. Qxd5 {[%clk 0:00:51.4]} 23... Kh8
{[%clk 0:00:27]} 24. Nxc5 {[%clk 0:00:34.6]} 24... Rad8 {[%clk 0:00:22.5]} 25.
Qh5 {[%clk 0:00:28.3]} 25... Bxd3 {[%clk 0:00:13.7]} 26. Nxd3 {[%clk 0:00:24]}
26... Rxd3 {[%clk 0:00:14.6]} 27. Rxh6+ {[%clk 0:00:17.9]} 27... Kg8 {[%clk
0:00:15]} 28. Rh8+ {[%clk 0:00:15.2]} 28... Bxh8 {[%clk 0:00:14.8]} 29. Qg6+
{[%clk 0:00:15.3]} 29... Bg7 {[%clk 0:00:15.5]} 30. Qxd3 {[%clk 0:00:15.4]}
30... Rc8 {[%clk 0:00:15.6]} 31. Be3 {[%clk 0:00:12.7]} 31... Nc2 {[%clk
0:00:16]} 32. Qd5+ {[%clk 0:00:12]} 32... Kh8 {[%clk 0:00:15.6]} 33. Qh5+ {[%clk
0:00:11.3]} 33... Kg8 {[%clk 0:00:15.6]} 34. Bf2 {[%clk 0:00:11.1]} 34... Rd8
{[%clk 0:00:14]} 35. f5 {[%clk 0:00:09.2]} 35... Nd4 {[%clk 0:00:12.1]} 36. Qg6
{[%clk 0:00:07]} 36... Nf3+ {[%clk 0:00:11.1]} 37. Kg2 {[%clk 0:00:05.9]} 37...
Ne5 {[%clk 0:00:11.6]} 38. Qe6+ {[%clk 0:00:05.5]} 38... Nf7 {[%clk 0:00:12]}
39. f6 {[%clk 0:00:04.8]} 39... Bh6 {[%clk 0:00:11]} 40. Qg4+ {[%clk 0:00:04.6]}
40... Kh7 {[%clk 0:00:10.6]} 41. Qf5+ {[%clk 0:00:04.5]} 41... Kh8 {[%clk
0:00:10.7]} 42. Qg6 {[%clk 0:00:04.6]} 42... Rg8 {[%clk 0:00:11]} 43. Qxg8+
{[%clk 0:00:04.7]} 43... Kxg8 {[%clk 0:00:11.9]} 44. Kf3 {[%clk 0:00:05]} 44...
Bc1 {[%clk 0:00:10.6]} 45. b3 {[%clk 0:00:03.7]} 45... Bb2 {[%clk 0:00:10.5]}
46. Ke4 {[%clk 0:00:03.7]} 46... Bxf6 {[%clk 0:00:08.9]} 47. Kf5 {[%clk
0:00:04]} 47... Bc3 {[%clk 0:00:06.6]} 48. Ke6 {[%clk 0:00:04.1]} 48... Ng5+
{[%clk 0:00:05.9]} 49. Kd7 {[%clk 0:00:03.8]} 49... Ne4 {[%clk 0:00:06.3]} 50.
Bh4 {[%clk 0:00:03.3]} 50... Bd4 {[%clk 0:00:05.6]} 51. Kc6 {[%clk 0:00:03.6]}
51... Nc3 {[%clk 0:00:05.4]} 52. Kb7 {[%clk 0:00:03.2]} 52... Nxa2 {[%clk
0:00:05.3]} 53. Kxa7 {[%clk 0:00:02.9]} 53... Nc1 {[%clk 0:00:05.7]} 54. Ka6
{[%clk 0:00:02.8]} 54... Nxb3 {[%clk 0:00:05.8]} 55. Kb5 {[%clk 0:00:03.1]}
55... Nd2 {[%clk 0:00:05.9]} 56. Bd8 {[%clk 0:00:03.2]} 56... Nf3 {[%clk
0:00:04.7]} 57. Bxb6 {[%clk 0:00:03.5]} 57... Bg7 {[%clk 0:00:05.4]} 58. Ka6
{[%clk 0:00:03.2]} 58... Ng5 {[%clk 0:00:05.7]} 59. Kb7 {[%clk 0:00:03.7]} 59...
Nxh3 {[%clk 0:00:05.7]} 60. Bc7 {[%clk 0:00:04.2]} 60... Ng5 {[%clk 0:00:05.7]}
61. Kc6 {[%clk 0:00:04.6]} 61... Nf7 {[%clk 0:00:06.6]} 62. Kb7 {[%clk
0:00:04.4]} 62... Ng5 {[%clk 0:00:05.8]} 63. Kc6 {[%clk 0:00:04.9]} 63... Ne4
{[%clk 0:00:06.5]} 64. Bd6 {[%clk 0:00:05.3]} 64... Kf7 {[%clk 0:00:06.6]} 65.
Bb4 {[%clk 0:00:05.6]} 65... Ke6 {[%clk 0:00:06.4]} 66. Kb5 {[%clk 0:00:05.7]}
66... Ng5 {[%clk 0:00:06.1]} 67. Kc4 {[%clk 0:00:05.1]} 67... Nf3 {[%clk
0:00:07]} 68. Bc3 {[%clk 0:00:04.9]} 68... Bf8 {[%clk 0:00:06.7]} 69. Kd3 {[%clk
0:00:04.7]} 69... Ng5 {[%clk 0:00:06.9]} 70. Ke3 {[%clk 0:00:04.3]} 70... Kd5
{[%clk 0:00:07]} 71. Kd3 {[%clk 0:00:04]} 71... Ne4 {[%clk 0:00:07.9]} 72. Be1
{[%clk 0:00:02.9]} 72... Bc5 {[%clk 0:00:07.7]} 0-1

[Event "*** Titled Tuesday Blitz"]
[Site "Chess.com"]
[Date "2020.12.01"]
[Round "11"]
[White "Gloomy_Wanderer"]
[Black "kirillshevchenko"]
[Result "0-1"]
[WhiteElo "2717"]
[BlackElo "2866"]
[TimeControl "180+1"]
[EndTime "12:07:34 PST"]
[Termination "kirillshevchenko won on time"]

1. Nf3 {[%clk 0:03:00.9]} 1... Nf6 {[%clk 0:02:59.2]} 2. c4 {[%clk 0:03:01.2]}
2... g6 {[%clk 0:02:59.6]} 3. Nc3 {[%clk 0:03:01.6]} 3... Bg7 {[%clk 0:03:00.2]}
4. e4 {[%clk 0:03:02.5]} 4... d6 {[%clk 0:03:00.5]} 5. d4 {[%clk 0:03:03]} 5...
O-O {[%clk 0:03:01.1]} 6. h3 {[%clk 0:03:03.5]} 6... e5 {[%clk 0:03:00.7]} 7. d5
{[%clk 0:03:03.8]} 7... Nh5 {[%clk 0:03:00.9]} 8. Nh2 {[%clk 0:03:01.6]} 8...
Qe8 {[%clk 0:03:00.6]} 9. Be2 {[%clk 0:02:55.9]} 9... Nf4 {[%clk 0:03:00.4]} 10.
Bf3 {[%clk 0:02:56.2]} 10... f5 {[%clk 0:03:01]} 11. g3 {[%clk 0:02:56.3]} 11...
Nxh3 {[%clk 0:02:48.5]} 12. Bg2 {[%clk 0:02:56.1]} 12... Qf7 {[%clk 0:02:34]}
13. Qf3 {[%clk 0:02:40]} 13... fxe4 {[%clk 0:02:12.8]} 14. Nxe4 {[%clk
0:02:23.2]} 14... Na6 {[%clk 0:01:54.9]} 15. Qxf7+ {[%clk 0:02:16.7]} 15... Rxf7
{[%clk 0:01:55.2]} 16. Bxh3 {[%clk 0:02:17]} 16... Bxh3 {[%clk 0:01:55.1]} 17.
Ng5 {[%clk 0:02:16.9]} 17... Nb4 {[%clk 0:01:44.3]} 18. Nxh3 {[%clk 0:02:00.6]}
18... Nc2+ {[%clk 0:01:43.8]} 19. Kd1 {[%clk 0:01:43.7]} 19... Nxa1 {[%clk
0:01:44.7]} 20. Be3 {[%clk 0:01:33.1]} 20... c6 {[%clk 0:01:34.4]} 21. Kd2
{[%clk 0:01:27.6]} 21... b5 {[%clk 0:01:27.5]} 22. Ng5 {[%clk 0:01:19.6]} 22...
Rc7 {[%clk 0:01:10]} 23. Ne6 {[%clk 0:01:16.3]} 23... Rcc8 {[%clk 0:01:06.2]}
24. Nxg7 {[%clk 0:01:15.7]} 24... Kxg7 {[%clk 0:01:05]} 25. Rxa1 {[%clk
0:00:44.2]} 25... bxc4 {[%clk 0:01:04.8]} 26. dxc6 {[%clk 0:00:44.4]} 26... Rxc6
{[%clk 0:01:00.3]} 27. Nf3 {[%clk 0:00:41.5]} 27... Rf8 {[%clk 0:01:00.1]} 28.
Ng5 {[%clk 0:00:37.1]} 28... d5 {[%clk 0:01:00.1]} 29. f4 {[%clk 0:00:33.3]}
29... d4 {[%clk 0:00:54.8]} 30. Bg1 {[%clk 0:00:33]} 30... Rb8 {[%clk
0:00:52.4]} 31. Kc2 {[%clk 0:00:30.7]} 31... c3 {[%clk 0:00:39.2]} 32. b3 {[%clk
0:00:30.2]} 32... Rd8 {[%clk 0:00:39.8]} 33. Kd3 {[%clk 0:00:27.2]} 33... exf4
{[%clk 0:00:28.7]} 34. gxf4 {[%clk 0:00:26.1]} 34... c2 {[%clk 0:00:28.9]} 35.
Rc1 {[%clk 0:00:22]} 35... Rc3+ {[%clk 0:00:27.6]} 36. Kd2 {[%clk 0:00:22.3]}
36... Rc6 {[%clk 0:00:15.3]} 37. Rxc2 {[%clk 0:00:20.1]} 37... Rxc2+ {[%clk
0:00:15.2]} 38. Kxc2 {[%clk 0:00:21]} 38... d3+ {[%clk 0:00:12.1]} 39. Kd2
{[%clk 0:00:21.5]} 39... Rd7 {[%clk 0:00:12.6]} 40. b4 {[%clk 0:00:18.4]} 40...
Kf6 {[%clk 0:00:12.9]} 41. b5 {[%clk 0:00:18.3]} 41... Kf5 {[%clk 0:00:13.4]}
42. Be3 {[%clk 0:00:18.8]} 42... h5 {[%clk 0:00:11.6]} 43. a4 {[%clk 0:00:18.5]}
43... h4 {[%clk 0:00:11.9]} 44. a5 {[%clk 0:00:18.4]} 44... Kg4 {[%clk
0:00:12.5]} 45. Ne4 {[%clk 0:00:12.6]} 45... Kf3 {[%clk 0:00:13]} 46. Ng5+
{[%clk 0:00:11]} 46... Kg2 {[%clk 0:00:13.2]} 47. b6 {[%clk 0:00:07.2]} 47...
axb6 {[%clk 0:00:13.7]} 48. Bxb6 {[%clk 0:00:07.6]} 48... Rd6 {[%clk 0:00:05.6]}
49. Bc5 {[%clk 0:00:04.9]} 49... Rd5 {[%clk 0:00:05.9]} 50. Bb6 {[%clk
0:00:05.3]} 50... Rd6 {[%clk 0:00:05.1]} 51. Bc5 {[%clk 0:00:04.9]} 51... Rc6
{[%clk 0:00:05.5]} 52. Bd4 {[%clk 0:00:04.6]} 52... h3 {[%clk 0:00:05]} 53. Nxh3
{[%clk 0:00:04.8]} 53... Kxh3 {[%clk 0:00:05.9]} 54. Kxd3 {[%clk 0:00:05.6]}
54... Kg4 {[%clk 0:00:06.3]} 55. Ke4 {[%clk 0:00:05.6]} 55... Rc4 {[%clk
0:00:04.6]} 56. a6 {[%clk 0:00:04.9]} 56... Ra4 {[%clk 0:00:04.3]} 57. a7 {[%clk
0:00:05.2]} 57... Kg3 {[%clk 0:00:02.6]} 58. Ke5 {[%clk 0:00:04.8]} 58... Ra6
{[%clk 0:00:03.1]} 59. Ke4 {[%clk 0:00:04.3]} 59... Ra5 {[%clk 0:00:02.7]} 60.
Be3 {[%clk 0:00:03.2]} 60... Ra4+ {[%clk 0:00:02.4]} 61. Bd4 {[%clk 0:00:03.5]}
61... Kg4 {[%clk 0:00:03]} 62. Ke5 {[%clk 0:00:02.9]} 62... Ra6 {[%clk
0:00:03.5]} 63. Ke4 {[%clk 0:00:02.8]} 63... Ra5 {[%clk 0:00:03.9]} 64. Be3
{[%clk 0:00:02.1]} 64... Kh4 {[%clk 0:00:04.4]} 65. Bd4 {[%clk 0:00:02.1]} 65...
Kh5 {[%clk 0:00:04.8]} 66. Be3 {[%clk 0:00:02.3]} 66... Ra4+ {[%clk 0:00:04.1]}
67. Bd4 {[%clk 0:00:02.6]} 67... Kh6 {[%clk 0:00:04.7]} 68. Ke3 {[%clk
0:00:02.4]} 68... Kh7 {[%clk 0:00:04.1]} 69. Ke4 {[%clk 0:00:02.8]} 69... Ra5
{[%clk 0:00:03.3]} 70. Ke3 {[%clk 0:00:02.4]} 70... Kg8 {[%clk 0:00:03.5]} 71.
Ke4 {[%clk 0:00:02.7]} 71... Kf7 {[%clk 0:00:03.9]} 72. Be3 {[%clk 0:00:02.9]}
72... Ke6 {[%clk 0:00:04.2]} 73. Bf2 {[%clk 0:00:02.3]} 73... Ra4+ {[%clk
0:00:04.5]} 74. Kf3 {[%clk 0:00:02.4]} 74... Kf5 {[%clk 0:00:04.3]} 75. Be3
{[%clk 0:00:02.6]} 75... Ra3 {[%clk 0:00:04.7]} 76. Kf2 {[%clk 0:00:01.8]} 76...
Ke4 {[%clk 0:00:05.1]} 0-1

[Event "*** Titled Tuesday Blitz"]
[Site "Chess.com"]
[Date "2020.12.01"]
[Round "11"]
[White "Nadtkins"]
[Black "Legendinunknown"]
[Result "1/2-1/2"]
[WhiteElo "2530"]
[BlackElo "2669"]
[TimeControl "180+1"]
[EndTime "12:07:38 PST"]
[Termination "Game drawn by repetition"]

1. Nf3 {[%clk 0:03:00.9]} 1... Nf6 {[%clk 0:02:59.4]} 2. g3 {[%clk 0:03:00.8]}
2... g6 {[%clk 0:02:57.9]} 3. b3 {[%clk 0:03:01.2]} 3... Bg7 {[%clk 0:02:58.8]}
4. Bb2 {[%clk 0:03:01.7]} 4... O-O {[%clk 0:02:59.7]} 5. Bg2 {[%clk 0:03:02.2]}
5... d6 {[%clk 0:02:59.9]} 6. d4 {[%clk 0:03:02.4]} 6... Nbd7 {[%clk 0:03:00.1]}
7. c4 {[%clk 0:03:00.2]} 7... c5 {[%clk 0:02:58.9]} 8. d5 {[%clk 0:02:56.3]}
8... a6 {[%clk 0:02:58.1]} 9. O-O {[%clk 0:02:50.3]} 9... b5 {[%clk 0:02:58]}
10. Nbd2 {[%clk 0:02:49]} 10... Nb6 {[%clk 0:02:52.5]} 11. Re1 {[%clk
0:02:40.5]} 11... Rb8 {[%clk 0:02:47.3]} 12. Rb1 {[%clk 0:02:39.8]} 12... bxc4
{[%clk 0:02:42.6]} 13. bxc4 {[%clk 0:02:37.7]} 13... e6 {[%clk 0:02:42.2]} 14.
e4 {[%clk 0:02:33.4]} 14... exd5 {[%clk 0:02:32.9]} 15. cxd5 {[%clk 0:02:31.9]}
15... Nbd7 {[%clk 0:02:29]} 16. Nc4 {[%clk 0:02:21.8]} 16... Nb6 {[%clk
0:02:23.7]} 17. Na5 {[%clk 0:02:20.5]} 17... Bd7 {[%clk 0:02:20.4]} 18. Nc6
{[%clk 0:01:26.5]} 18... Bxc6 {[%clk 0:02:18.3]} 19. dxc6 {[%clk 0:01:27.4]}
19... Nc4 {[%clk 0:02:10.7]} 20. Bxf6 {[%clk 0:01:20.8]} 20... Bxf6 {[%clk
0:02:07.9]} 21. Qd5 {[%clk 0:01:03.6]} 21... Ne5 {[%clk 0:01:56.6]} 22. Nxe5
{[%clk 0:00:58.7]} 22... Bxe5 {[%clk 0:01:57.5]} 23. Rb7 {[%clk 0:00:56.8]}
23... Rxb7 {[%clk 0:01:52.9]} 24. cxb7 {[%clk 0:00:57.7]} 24... Qc7 {[%clk
0:01:52.9]} 25. h3 {[%clk 0:00:48.8]} 25... Rb8 {[%clk 0:01:49.7]} 26. Rb1
{[%clk 0:00:48.9]} 26... c4 {[%clk 0:01:36.1]} 27. Bf1 {[%clk 0:00:44.7]} 27...
c3 {[%clk 0:01:33.8]} 28. Qb3 {[%clk 0:00:16.8]} 28... c2 {[%clk 0:01:27]} 29.
Rc1 {[%clk 0:00:16.7]} 29... Rxb7 {[%clk 0:01:27.1]} 30. Qxc2 {[%clk 0:00:17.1]}
30... Qb6 {[%clk 0:01:24.9]} 31. Kg2 {[%clk 0:00:16.3]} 31... Qd4 {[%clk
0:01:22.9]} 32. Qd3 {[%clk 0:00:15.1]} 32... Qxd3 {[%clk 0:01:20.7]} 33. Bxd3
{[%clk 0:00:16]} 33... Rb2 {[%clk 0:01:21.1]} 34. Rc2 {[%clk 0:00:16.5]} 34...
Rb6 {[%clk 0:01:15.2]} 35. Bc4 {[%clk 0:00:16.6]} 35... Kg7 {[%clk 0:01:14.5]}
36. f4 {[%clk 0:00:17]} 36... Bd4 {[%clk 0:01:14.4]} 37. Bd5 {[%clk 0:00:17.2]}
37... Rb2 {[%clk 0:01:05.7]} 38. Rxb2 {[%clk 0:00:16.9]} 38... Bxb2 {[%clk
0:01:06.6]} 39. h4 {[%clk 0:00:17.5]} 39... f5 {[%clk 0:01:06.5]} 40. Kf3 {[%clk
0:00:17.1]} 40... Kf6 {[%clk 0:01:05.9]} 41. g4 {[%clk 0:00:17]} 41... fxe4+
{[%clk 0:01:02.5]} 42. Kxe4 {[%clk 0:00:16.7]} 42... h6 {[%clk 0:01:00.4]} 43.
g5+ {[%clk 0:00:16]} 43... Kg7 {[%clk 0:01:00.2]} 44. f5 {[%clk 0:00:15.7]}
44... gxf5+ {[%clk 0:00:56.1]} 45. Kxf5 {[%clk 0:00:16.6]} 45... hxg5 {[%clk
0:00:56.3]} 46. hxg5 {[%clk 0:00:17.5]} 46... Bc1 {[%clk 0:00:56.3]} 47. g6
{[%clk 0:00:17.5]} 47... Bd2 {[%clk 0:00:54.9]} 48. a4 {[%clk 0:00:18.4]} 48...
a5 {[%clk 0:00:54]} 49. Bf7 {[%clk 0:00:18.8]} 49... Bc3 {[%clk 0:00:53.8]} 50.
Ke6 {[%clk 0:00:19.3]} 50... Be5 {[%clk 0:00:54.7]} 51. Kf5 {[%clk 0:00:19.5]}
51... Kf8 {[%clk 0:00:54.1]} 52. Ke6 {[%clk 0:00:20]} 52... Bf4 {[%clk
0:00:53.6]} 53. Kf5 {[%clk 0:00:20.1]} 53... Bg3 {[%clk 0:00:53]} 54. Ke6 {[%clk
0:00:20.4]} 54... Kg7 {[%clk 0:00:52.3]} 55. Kf5 {[%clk 0:00:20.4]} 55... Bh2
{[%clk 0:00:52.6]} 56. Ke6 {[%clk 0:00:20.7]} 56... Bg3 {[%clk 0:00:52]} 57. Kf5
{[%clk 0:00:21.1]} 57... Be1 {[%clk 0:00:51.8]} 58. Ke6 {[%clk 0:00:21.3]} 58...
Bb4 {[%clk 0:00:52.7]} 59. Kf5 {[%clk 0:00:21.5]} 59... Bc3 {[%clk 0:00:52.1]}
60. Bd5 {[%clk 0:00:21.1]} 60... Be5 {[%clk 0:00:53]} 61. Bf7 {[%clk 0:00:21]}
61... Kh6 {[%clk 0:00:48.3]} 62. Bd5 {[%clk 0:00:21.9]} 62... Bg7 {[%clk
0:00:47.3]} 63. Bf7 {[%clk 0:00:22.8]} 63... Kh5 {[%clk 0:00:46.8]} 64. Ke6
{[%clk 0:00:23.2]} 64... Kh6 {[%clk 0:00:44.4]} 65. Kxd6 {[%clk 0:00:22.3]}
65... Bc3 {[%clk 0:00:44.8]} 66. Kc6 {[%clk 0:00:22.1]} 66... Kg7 {[%clk
0:00:45.7]} 67. Kd5 {[%clk 0:00:22.2]} 67... Bb4 {[%clk 0:00:46.6]} 68. Ke6
{[%clk 0:00:22.3]} 68... Kf8 {[%clk 0:00:46.2]} 69. Kf5 {[%clk 0:00:22.7]} 69...
Kg7 {[%clk 0:00:47.1]} 70. Bc4 {[%clk 0:00:23.1]} 70... Kf8 {[%clk 0:00:46.6]}
71. Bd3 {[%clk 0:00:23.7]} 71... Kg7 {[%clk 0:00:46.6]} 72. Ke6 {[%clk
0:00:24.3]} 72... Kf8 {[%clk 0:00:46.1]} 73. Kf6 {[%clk 0:00:24.2]} 73... Bc3+
{[%clk 0:00:44.6]} 74. Kf5 {[%clk 0:00:24.8]} 74... Bb4 {[%clk 0:00:45.1]} 75.
Ke6 {[%clk 0:00:25.2]} 75... Bc3 {[%clk 0:00:44.8]} 76. Kd5 {[%clk 0:00:25.6]}
76... Bb4 {[%clk 0:00:44.6]} 77. Kc4 {[%clk 0:00:26.1]} 77... Kg7 {[%clk
0:00:45.5]} 78. Kb5 {[%clk 0:00:26.3]} 78... Kf8 {[%clk 0:00:46.4]} 79. Kc4
{[%clk 0:00:26.8]} 79... Kg7 {[%clk 0:00:47.3]} 80. Kd5 {[%clk 0:00:27.5]} 80...
Kf8 {[%clk 0:00:48.2]} 81. Ke6 {[%clk 0:00:27.8]} 81... Kg7 {[%clk 0:00:49.1]}
82. Kf5 {[%clk 0:00:28.3]} 82... Kf8 {[%clk 0:00:50]} 83. Kf6 {[%clk 0:00:28.7]}
83... Bc3+ {[%clk 0:00:45.5]} 84. Ke6 {[%clk 0:00:29.1]} 84... Bb4 {[%clk
0:00:45.8]} 85. Bc2 {[%clk 0:00:29.5]} 85... Bc3 {[%clk 0:00:45.6]} 86. Kf5
{[%clk 0:00:30.4]} 86... Kg7 {[%clk 0:00:45.2]} 87. Kg5 {[%clk 0:00:30.6]} 87...
Bb4 {[%clk 0:00:46.1]} 88. Kf5 {[%clk 0:00:31]} 88... Bc3 {[%clk 0:00:47]} 89.
Ke6 {[%clk 0:00:31.1]} 89... Bb4 {[%clk 0:00:47.9]} 90. Kd5 {[%clk 0:00:31.6]}
90... Bc3 {[%clk 0:00:48.1]} 91. Kc4 {[%clk 0:00:32.5]} 91... Bb4 {[%clk
0:00:49]} 92. Kb5 {[%clk 0:00:32.8]} 92... Be1 {[%clk 0:00:48.9]} 93. Kc4 {[%clk
0:00:32.7]} 93... Bb4 {[%clk 0:00:49.8]} 94. Kd5 {[%clk 0:00:32.7]} 94... Be1
{[%clk 0:00:50]} 95. Ke6 {[%clk 0:00:32.9]} 95... Bb4 {[%clk 0:00:50.9]} 96. Kd7
{[%clk 0:00:32.9]} 96... Be1 {[%clk 0:00:51.8]} 97. Kc6 {[%clk 0:00:33.5]} 97...
Bb4 {[%clk 0:00:52.7]} 98. Kb5 {[%clk 0:00:34]} 98... Be1 {[%clk 0:00:53.6]} 99.
Ka6 {[%clk 0:00:34.4]} 99... Bb4 {[%clk 0:00:54.5]} 100. Kb7 {[%clk 0:00:35.3]}
100... Be1 {[%clk 0:00:54.3]} 101. Ka7 {[%clk 0:00:35.7]} 101... Bb4 {[%clk
0:00:55.2]} 102. Ka8 {[%clk 0:00:36.6]} 102... Be1 {[%clk 0:00:55.7]} 103. Kb7
{[%clk 0:00:36.9]} 103... Bb4 {[%clk 0:00:56.6]} 104. Kc8 {[%clk 0:00:37.8]}
104... Be1 {[%clk 0:00:57.5]} 105. Kd7 {[%clk 0:00:38.7]} 105... Bb4 {[%clk
0:00:58.4]} 106. Ke6 {[%clk 0:00:39.6]} 106... Be1 {[%clk 0:00:59.3]} 107. Kd5
{[%clk 0:00:40.5]} 107... Bb4 {[%clk 0:01:00.2]} 108. Kc4 {[%clk 0:00:40.1]}
108... Be1 {[%clk 0:01:00.2]} 109. Be4 {[%clk 0:00:41]} 109... Bb4 {[%clk
0:01:00.5]} 110. Kd3 {[%clk 0:00:41.9]} 110... Be1 {[%clk 0:01:00.4]} 111. Ke2
{[%clk 0:00:42.8]} 111... Bb4 {[%clk 0:01:01.3]} 112. Kd3 {[%clk 0:00:43.1]}
112... Bf8 {[%clk 0:01:01.1]} 113. Kc4 {[%clk 0:00:43.6]} 113... Bb4 {[%clk
0:01:02]} 114. Kd3 {[%clk 0:00:43.3]} 1/2-1/2